bitfinex-derivatives/quotes_ETHF0:USTF0_20250908
["timestamp","ask_amount","ask_price","bid_price","bid_amount"]
[1757348571942,0.6993,4358.6,4358.5,0.7191]
[1757348572236,0.3988,4358.6,4358.5,0.8369]
[1757348572742,0.6993,4359.0,4358.9,0.406]
[1757348572940,1.26727783,4359.0,4358.9,0.7191]
[1757348575736,1.37197783,4359.0,4358.5,0.3131]
[1757348576036,0.6993,4358.6,4358.5,0.5481]
[1757348576229,0.6993,4358.6,4358.5,0.5238]
[1757348577137,0.6993,4358.6,4358.5,0.7191]
[1757348577342,0.6993,4358.6,4358.5,1.01324964]
[1757348578742,0.6993,4358.6,4358.5,1.13104964]
[1757348578942,0.3988,4358.6,4358.5,1.13104964]
[1757348580635,0.1196,4359.5,4358.6,0.3131]
[1757348580837,0.6993,4359.3,4359.2,0.5238]
[1757348581036,1.26822756,4359.3,4359.2,0.29414964]
[1757348581544,1.26822756,4359.3,4359.2,0.60724964]
[1757348581742,1.26822756,4359.3,4359.2,0.81794964]
[1757348582040,0.56892756,4359.3,4359.2,1.01324964]
[1757348582241,0.6993,4360.0,4359.9,0.5238]
[1757348582437,1.2684164,4360.0,4359.9,0.81794964]
[1757348582632,1.3880164,4360.0,4359.9,0.29414964]
[1757348582835,5.3880164,4360.0,4359.9,0.29414964]
[1757348583043,5.6173764,4360.0,4359.1,0.3131]
[1757348583238,0.5682,4359.2,4359.1,0.5238]
[1757348583441,0.3988,4359.2,4359.1,0.5238]
[1757348583646,0.9679164,4359.2,4359.1,0.7191]
[1757348586348,0.5691164,4359.2,4359.1,0.7191]
[1757348586555,0.5682,4360.1,4360.0,0.6416]
[1757348586750,1.13704413,4360.1,4360.0,0.6416]
[1757348586950,0.96764413,4360.1,4360.0,0.6416]
[1757348587646,1.13704413,4360.1,4360.0,0.6416]
[1757348587849,1.13704413,4360.1,4360.0,0.3131]
[1757348589041,1.13676374,4360.1,4360.0,0.3131]
[1757348589246,1.13676374,4360.1,4360.0,0.6416]
[1757348589947,0.96736374,4360.1,4360.0,0.6416]
[1757348590550,1.13676374,4360.1,4360.0,0.6416]
[1757348591248,1.13676374,4360.1,4359.5,0.1178]
[1757348591453,0.3988,4359.7,4359.6,0.5238]
[1757348591846,0.96736374,4359.7,4359.6,0.7191]
[1757348593952,0.77286374,4359.7,4359.6,0.7191]
[1757348594152,0.56856374,4359.7,4359.6,0.7191]
[1757348595150,0.1694,4360.4,4359.6,0.69594662]
[1757348595352,0.2043,4359.9,4359.8,0.7191]
[1757348595553,0.3988,4359.9,4359.8,1.00904662]
[1757348595753,0.96700093,4359.9,4359.8,1.00904662]
[1757348595954,1.13630093,4359.9,4359.8,0.81374662]
[1757348596159,1.13630093,4359.9,4359.8,0.60304662]
[1757348597058,1.13630093,4359.9,4359.8,0.80064662]
[1757348597247,0.96700093,4359.9,4359.8,0.99864662]
[1757348598353,0.56820093,4359.9,4359.8,0.99864662]
[1757348598558,0.56820093,4359.9,4359.8,0.99334662]
[1757348599859,33.05,4361.2,4359.8,0.28994662]
[1757348599860,0.5817,4360.1,4359.8,0.28994662]
[1757348600057,0.4124,4360.1,4360.0,0.3145]
[1757348600259,0.4124,4360.1,4360.0,0.60444662]
[1757348600457,1.1497906,4360.1,4360.0,0.91224662]
[1757348600658,1.1497906,4360.1,4360.0,0.71464662]
[1757348600957,1.1497906,4360.1,4360.0,0.91224662]
[1757348601155,0.9804906,4360.1,4360.0,0.91224662]
[1757348602463,1.1497906,4360.1,4360.0,0.59774662]
[1757348603354,1.1497906,4360.1,4360.0,0.3078]
[1757348603556,0.1693,4360.0,4359.5,0.1178]
[1757348603759,0.4124,4359.7,4359.6,0.9992225]
[1757348604161,0.9804906,4359.7,4359.6,0.9992225]
[1757348604362,1.1497906,4359.7,4359.6,0.6036225]
[1757348604963,1.1497906,4359.7,4359.6,0.2958225]
[1757348605265,0.1693,4359.6,4359.0,0.4256]
[1757348605560,0.5817,4359.1,4359.0,0.4256]
[1757348605758,1.1497906,4359.1,4359.0,0.72151351]
[1757348605966,1.1497906,4359.1,4359.0,0.29591351]
[1757348606259,1.1497906,4359.1,4359.0,0.60371351]
[1757348606460,0.1693,4359.0,4358.5,0.4256]
[1757348606662,0.5817,4358.6,4358.5,0.4256]
[1757348606862,1.1497906,4358.6,4358.5,0.71865866]
[1757348607062,5.1497906,4358.6,4358.5,0.29305866]
[1757348607361,5.1497906,4358.6,4358.1,0.5054]
[1757348607362,0.4124,4358.2,4358.1,0.5054]
[1757348607664,0.4124,4358.2,4358.1,0.7034]
[1757348607861,0.7799906,4358.2,4358.1,0.7034]
[1757348608058,0.7799906,4358.2,4358.1,0.99629393]
[1757348608059,0.5680906,4358.2,4358.1,0.99629393]
[1757348608255,0.1693,4359.1,4358.2,0.3078]
[1757348608459,0.56743545,4359.0,4358.5,0.1169]
[1757348608657,0.2119,4358.7,4358.6,0.7034]
[1757348608856,0.56743545,4358.7,4358.6,0.99614228]
[1757348609164,1.624796,4359.8,4358.7,0.3078]
[1757348609356,0.56739348,4359.7,4358.7,0.3078]
[1757348609558,1.624796,4359.8,4359.5,0.1169]
[1757348609559,0.97979348,4359.6,4359.5,0.1169]
[1757348609859,0.97979348,4359.6,4359.5,0.6223]
[1757348610062,1.14909348,4359.6,4359.5,0.6223]
[1757348610962,0.97979348,4359.6,4359.5,0.6223]
[1757348611160,0.97979348,4359.6,4359.5,0.8203]
[1757348612667,1.14849348,4359.6,4359.5,0.6223]
[1757348613065,0.97979348,4359.6,4359.5,0.6223]
[1757348617572,1.14849348,4359.6,4359.5,0.6223]
[1757348617972,0.97979348,4359.6,4359.5,0.6223]
[1757348618574,0.56739348,4359.6,4359.5,0.8203]
[1757348619069,0.56735787,4359.6,4359.5,0.5125]
[1757348619374,0.1687,4360.5,4359.5,0.5125]
[1757348619574,0.56735654,4360.4,4359.6,0.3078]
[1757348619876,0.97975654,4360.3,4360.2,0.5054]
[1757348620175,0.97975654,4360.3,4360.2,0.7034]
[1757348621375,0.97975654,4360.3,4360.2,0.5054]
[1757348623072,0.97975654,4360.3,4360.2,0.7034]
[1757348624580,0.56735654,4360.3,4360.2,0.7034]
[1757348624878,0.2119,4360.6,4360.5,0.8203]
[1757348625375,0.98006643,4360.6,4360.5,0.8203]
[1757348628178,1.14866643,4360.6,4360.5,0.4247]
[1757348628480,1.14866643,4360.6,4360.0,0.1169]
[1757348628781,0.4015,4360.2,4360.1,0.5051]
[1757348628980,0.4015,4360.2,4360.1,0.7124]
[1757348629181,34.505496,4361.2,4360.1,0.7124]
[1757348629182,0.1686,4360.9,4360.1,0.7124]
[1757348629382,0.56753649,4360.8,4360.2,0.3036]
[1757348629682,0.96903649,4360.7,4360.6,0.5051]
[1757348629982,0.96903649,4360.7,4360.6,0.7124]
[1757348633887,0.96878271,4360.7,4360.6,0.7124]
[1757348634985,1.13738271,4360.7,4360.6,0.5051]
[1757348635190,0.96878271,4360.7,4360.6,0.7124]
[1757348636688,1.13738271,4360.7,4360.6,0.7124]
[1757348637691,0.96878271,4360.7,4360.6,0.7124]
[1757348638594,0.77348271,4360.7,4360.6,0.7124]
[1757348641285,0.56728271,4360.7,4360.6,0.7124]
[1757348641495,0.77348271,4360.7,4360.6,0.7124]
[1757348641696,0.96878271,4360.7,4360.6,0.7124]
[1757348641888,1.13738271,4360.7,4360.6,0.7124]
[1757348642083,0.1686,4360.6,4360.1,0.3036]
[1757348642288,0.1686,4360.6,4359.6,0.3036]
[1757348642289,0.5701,4359.7,4359.6,0.3036]
[1757348642490,0.4015,4359.7,4359.6,0.5051]
[1757348642693,0.4015,4359.7,4359.6,0.7124]
[1757348642694,0.96864041,4359.7,4359.6,0.7124]
[1757348643092,0.56714041,4359.7,4359.6,0.7124]
[1757348645098,2.16416197,4361.5,4360.5,0.1257]
[1757348645099,1.427696,4360.6,4360.5,0.1257]
[1757348645296,0.2062,4360.6,4360.5,0.8381]
[1757348645800,0.705,4360.6,4360.5,0.8381]
[1757348646495,0.705,4360.6,4360.5,0.7124]
[1757348646799,0.705,4360.6,4360.5,0.5051]
[1757348647300,0.705,4360.6,4360.5,0.7124]
[1757348648002,0.705,4361.0,4360.9,0.7124]
[1757348649402,0.4015,4361.0,4360.9,0.7124]
[1757348649701,0.3035,4361.3,4360.9,0.7124]
[1757348649894,0.705,4361.3,4361.2,0.7124]
[1757348650595,1.926496,4361.7,4361.6,0.2015]
[1757348650797,0.705,4361.7,4361.6,0.5051]
[1757348651304,0.705,4361.7,4361.6,0.7124]
[1757348651505,0.705,4361.7,4361.6,0.5051]
[1757348651703,0.705,4361.7,4361.6,0.7124]
[1757348652200,0.4015,4361.7,4361.6,0.7124]
[1757348652404,0.705,4361.7,4361.6,0.89761763]
[1757348654692,0.705,4361.7,4360.5,0.1257]
[1757348654693,0.3035,4361.6,4360.6,0.3036]
[1757348654899,0.4015,4360.7,4360.6,0.7124]
[1757348655200,0.2062,4360.7,4360.6,0.99689814]
[1757348655402,0.3035,4361.3,4360.7,0.3036]
[1757348656108,0.7164,4361.3,4361.2,0.2015]
[1757348656306,0.7164,4361.3,4361.2,0.5069]
[1757348657306,1.2811096,4361.3,4361.2,0.5069]
[1757348657703,0.5647096,4361.3,4361.2,0.7072]
[1757348659306,0.3068,4362.1,4361.2,0.4018]
[1757348659500,0.3068,4362.1,4362.0,0.6273]
[1757348659501,0.708,4362.1,4362.0,0.6273]
[1757348659803,1.27253601,4362.1,4362.0,0.6273]
[1757348661001,1.27253601,4362.1,4361.5,0.1204]
[1757348661203,0.708,4361.6,4361.5,0.4258]
[1757348661400,1.27253601,4361.6,4361.5,0.6273]
[1757348661807,1.27253601,4361.6,4361.5,0.5069]
[1757348662003,0.96573601,4361.6,4361.5,0.8276]
[1757348662305,1.27253601,4361.6,4361.5,0.3054]
[1757348662495,1.27253601,4361.6,4361.5,0.6273]
[1757348662700,0.56453601,4361.6,4361.5,0.8276]
[1757348666406,0.234,4362.2,4361.5,0.5222]
[1757348666709,0.9653145,4362.1,4362.0,0.6273]
[1757348666896,1.2721145,4362.1,4362.0,0.79881978]
[1757348667611,0.9653145,4362.1,4362.0,0.99911978]
[1757348669312,1.2721145,4362.1,4362.0,0.99911978]
[1757348669511,1.2721145,4362.1,4362.0,0.17151978]
[1757348670207,1.2721145,4362.1,4362.0,0.47691978]
[1757348670408,1.2721145,4362.1,4362.0,0.17151978]
[1757348671010,5.2721145,4362.1,4362.0,0.17151978]
[1757348671211,5.5013645,4362.1,4362.0,0.17151978]
[1757348671713,5.2721145,4362.1,4362.0,0.17151978]
[1757348672017,5.5013645,4362.1,4361.1,0.3054]
[1757348672311,0.5364,4361.2,4360.6,0.3054]
[1757348672509,0.6993145,4361.1,4360.6,0.3054]
[1757348672704,0.4012,4360.7,4360.6,0.5069]
[1757348673400,0.4012,4360.7,4360.6,0.7072]
[1757348674313,0.4012,4361.1,4361.0,0.6273]
[1757348674506,1.10089272,4361.1,4361.0,0.4258]
[1757348675308,1.10089272,4361.1,4360.6,0.3054]
[1757348675507,0.5364,4360.7,4360.6,0.3054]
[1757348675715,0.96569272,4360.7,4360.6,0.5069]
[1757348676415,0.96569272,4360.7,4360.6,0.7072]
[1757348677316,0.56449272,4360.7,4360.6,4.7072]
[1757348678212,1.79143519,4361.7,4361.6,0.2015]
[1757348678413,1.86363519,4361.7,4361.6,0.7072]
[1757348678607,0.7589292,4361.7,4361.6,0.7072]
[1757348683223,0.5644292,4361.7,4361.6,0.7072]
[1757348683423,0.5644292,4361.7,4361.6,0.4018]
[1757348683621,0.4285,4362.1,4362.0,0.8276]
[1757348683814,0.6352,4362.1,4362.0,0.8276]
[1757348684019,1.20002414,4362.1,4362.0,0.8276]
[1757348687023,0.56482414,4362.1,4362.0,0.8276]
[1757348688732,0.76342414,4362.1,4362.0,0.8276]
[1757348690029,0.97342414,4362.1,4362.0,0.8276]
[1757348691326,1.10772414,4362.1,4362.0,0.6273]
[1757348691525,1.10772414,4362.1,4362.0,0.4258]
[1757348691720,1.10772414,4362.1,4362.0,0.3054]
[1757348692425,1.10772414,4362.1,4362.0,0.4255]
[1757348692822,1.10772414,4362.1,4362.0,0.3054]
[1757348693031,0.1343,4362.0,4361.6,0.317]
[1757348693235,0.4086,4361.7,4361.6,0.516]
[1757348693631,0.97342414,4361.7,4361.6,1.00362528]
[1757348694132,0.97342414,4361.7,4361.6,0.7148]
[1757348696538,0.97342414,4361.7,4361.6,1.00361612]
[1757348697831,0.76342414,4361.7,4361.6,1.00361612]
[1757348699038,0.56482414,4361.7,4361.6,1.00361612]
[1757348700439,0.136,4362.6,4361.6,1.00361612]
[1757348700636,0.5446,4362.6,4362.5,0.6361]
[1757348700835,1.10909789,4362.6,4362.5,0.6361]
[1757348701037,0.97309789,4362.6,4362.5,0.6361]
[1757348701644,1.10739789,4362.6,4362.5,0.4371]
[1757348701843,1.10739789,4362.6,4362.5,0.317]
[1757348702341,1.10739789,4362.6,4362.5,0.6361]
[1757348703044,0.97309789,4362.6,4362.5,0.6361]
[1757348703540,0.97309789,4362.6,4362.5,0.8349]
[1757348703753,1.10739789,4362.6,4362.5,0.317]
[1757348703948,1.10739789,4362.6,4362.5,0.3191]
[1757348704146,0.97309789,4362.6,4362.5,0.6361]
[1757348704352,0.97295328,4362.6,4362.5,0.6361]
[1757348704647,0.97295328,4362.6,4362.5,0.8349]
[1757348706554,0.56435328,4362.6,4362.5,0.8349]
[1757348709055,0.56435328,4362.6,4362.5,1.12029107]
[1757348710759,0.234,4363.4,4363.3,0.7148]
[1757348712257,0.1986,4363.6,4363.5,0.5179]
[1757348712454,0.1986,4363.6,4363.5,0.8349]
[1757348713058,0.4086,4363.6,4363.5,0.8349]
[1757348713247,0.7171,4363.6,4363.5,0.8349]
[1757348714763,0.7171,4363.6,4363.5,0.7148]
[1757348716360,0.7171,4363.6,4363.5,0.8413]
[1757348719265,0.4086,4363.6,4363.5,0.8413]
[1757348719465,33.036,4364.1,4364.0,0.1265]
[1757348719675,0.1936,4364.1,4364.0,0.8382]
[1757348719969,0.6877,4364.1,4364.0,0.8382]
[1757348720366,0.6877,4364.1,4363.0,0.1201]
[1757348720572,0.234,4364.5,4362.9,0.5173]
[1757348720573,0.6877,4363.0,4362.9,0.5173]
[1757348721059,0.7851,4363.0,4362.6,0.3078]
[1757348721671,0.7851,4363.0,4362.1,0.3078]
[1757348722164,0.6877,4363.0,4362.9,0.5173]
[1757348722469,0.6877,4363.0,4362.9,0.7117]
[1757348722671,1.24894399,4363.0,4362.9,0.7117]
[1757348723065,0.56124399,4363.0,4362.9,0.7117]
[1757348723262,0.56124399,4363.0,4362.9,4.7117]
[1757348723467,0.6877,4364.1,4364.0,0.5173]
[1757348723773,0.95174188,4364.1,4364.0,0.8382]
[1757348725569,0.56144188,4364.1,4364.0,0.8382]
[1757348725771,1.52583519,4365.1,4364.0,4.8382]
[1757348725978,0.234,4365.4,4364.9,0.5173]
[1757348725979,1.24907463,4365.0,4364.9,0.5173]
[1757348726164,1.24907463,4365.0,4364.9,0.7117]
[1757348726368,0.56137463,4365.0,4364.9,0.7117]
[1757348726875,0.75497463,4365.0,4364.9,0.7117]
[1757348727072,0.2974,4364.9,4364.5,0.1265]
[1757348727275,0.3903,4364.6,4364.5,0.5304]
[1757348727670,0.6877,4364.6,4364.5,0.7117]
[1757348727877,0.6877,4364.6,4364.5,0.8382]
[1757348728270,0.1936,4364.6,4364.5,0.8382]
[1757348728566,0.491,4365.0,4364.9,0.2095]
[1757348728769,1.24874216,4365.0,4364.9,0.7117]
[1757348729376,0.75464216,4365.0,4364.9,0.7117]
[1757348730271,0.234,4365.4,4364.9,0.7117]
[1757348730577,0.9217,4366.1,4366.0,0.5173]
[1757348730876,1.482932,4366.1,4366.0,0.5173]
[1757348731477,0.795232,4366.1,4366.0,0.8382]
[1757348731674,0.234,4366.1,4366.0,0.8382]
[1757348732077,0.56096233,4366.1,4366.0,0.5304]
[1757348732279,0.1936,4366.2,4366.1,0.7117]
[1757348732471,0.75425098,4366.2,4366.1,0.7117]
[1757348732667,0.56065098,4366.2,4366.1,0.7117]
[1757348732977,0.6877,4367.2,4367.1,0.2095]
[1757348733168,1.24844423,4367.2,4367.1,0.2095]
[1757348733573,1.24844423,4367.2,4367.1,0.5173]
[1757348734280,1.24844423,4367.2,4367.1,0.7117]
[1757348734482,1.24844423,4367.2,4367.1,0.5173]
[1757348734677,1.24844423,4367.2,4367.1,0.2095]
[1757348735674,1.24844423,4367.2,4367.1,0.5173]
[1757348735877,1.24844423,4367.2,4366.6,0.3078]
[1757348736179,0.75434423,4367.1,4367.0,0.1265]
[1757348736481,0.75434423,4367.1,4367.0,0.8382]
[1757348736971,0.1936,4366.7,4366.6,0.7117]
[1757348737172,0.3903,4366.7,4366.6,0.7117]
[1757348737380,0.6877,4366.7,4366.6,0.7117]
[1757348737976,0.3903,4366.7,4366.6,0.7117]
[1757348738179,0.1936,4366.7,4366.6,0.7117]
[1757348738479,0.1936,4367.1,4367.0,0.8382]
[1757348738671,0.75276857,4367.1,4367.0,0.8382]
[1757348738876,0.94946857,4367.1,4367.0,0.8382]
[1757348739076,1.24686857,4367.1,4367.0,0.8382]
[1757348739479,0.2974,4367.7,4367.0,0.8382]
[1757348739671,0.6877,4366.2,4366.1,0.7117]
[1757348740073,0.6877,4366.2,4365.5,0.1265]
[1757348740074,0.6877,4365.6,4365.5,0.8382]
[1757348740278,0.3903,4365.6,4365.5,0.8382]
[1757348740581,0.6877,4366.4,4366.3,0.5173]
[1757348740785,0.3903,4366.4,4366.3,0.7117]
[1757348741377,0.6877,4366.4,4366.3,0.7117]
[1757348741675,1.24723294,4366.4,4366.3,0.5173]
[1757348741881,1.24723294,4366.4,4366.3,0.7117]
[1757348742185,0.1936,4366.4,4366.3,0.7117]
[1757348742680,0.3903,4366.4,4366.3,0.7117]
[1757348743276,0.1936,4366.4,4366.3,0.7117]
[1757348743881,0.6877,4366.4,4366.3,0.7117]
[1757348744276,0.3334,4367.0,4365.5,0.1265]
[1757348744277,0.3903,4365.7,4365.6,0.7117]
[1757348745284,0.6877,4365.7,4365.6,0.7117]
[1757348745576,0.1197,4366.5,4365.1,0.4091]
[1757348745577,0.1964,4365.2,4365.1,0.4091]
[1757348745770,0.1964,4365.2,4365.1,0.7307]
[1757348745971,0.4063,4365.2,4365.1,0.7307]
[1757348746178,0.7235,4365.1,4365.0,0.1955]
[1757348746371,0.7235,4365.1,4364.8,0.3216]
[1757348746577,0.4063,4365.1,4364.5,0.1265]
[1757348747274,0.1964,4364.7,4364.6,0.7307]
[1757348748683,0.3172,4365.0,4364.6,0.7307]
[1757348748878,0.3172,4365.0,4364.7,0.3216]
[1757348749278,0.5136,4365.0,4364.9,0.4091]
[1757348749578,0.7235,4365.0,4364.9,0.7307]
[1757348749783,0.4063,4365.1,4365.0,0.8529]
[1757348749977,0.55998228,4365.7,4365.0,0.5313]
[1757348750178,0.1964,4366.1,4366.0,0.8529]
[1757348750379,0.235,4366.8,4366.1,0.3216]
[1757348750580,0.9585,4366.8,4366.7,0.1955]
[1757348750772,0.3172,4366.7,4366.1,0.3216]
[1757348750977,0.7566105,4366.6,4366.5,0.8529]
[1757348751374,0.5602105,4366.6,4366.5,0.8529]
[1757348752190,1.46443519,4367.8,4366.6,0.3216]
[1757348752385,1.46443519,4367.8,4366.5,0.1222]
[1757348752386,0.56089771,4367.7,4367.6,0.4091]
[1757348752687,0.56089771,4367.7,4367.6,0.7307]
[1757348753578,0.236,4368.6,4367.6,0.4091]
[1757348753778,0.7577439,4368.5,4368.4,0.7307]
[1757348753978,0.5613439,4368.5,4368.4,0.7307]
[1757348754178,0.5613439,4368.5,4368.0,0.1222]
[1757348754179,0.4063,4368.5,4368.0,0.1222]
[1757348754376,0.4063,4368.5,4368.1,0.5171]
[1757348754377,0.7235,4368.2,4368.1,0.5171]
[1757348754578,1.28445315,4368.2,4368.1,0.5171]
[1757348754778,1.28445315,4368.2,4367.6,0.3216]
[1757348754978,0.3172,4368.6,4368.1,0.7307]
[1757348755183,0.75733491,4368.5,4368.4,0.5171]
[1757348755383,1.28443491,4368.5,4368.4,0.5171]
[1757348755582,0.56093491,4368.5,4368.4,0.7307]
[1757348755876,0.75733491,4368.5,4368.4,0.7307]
[1757348756084,0.75732897,4368.5,4368.4,0.7307]
[1757348756488,1.28442897,4368.5,4368.4,0.7307]
[1757348756678,0.67992897,4368.5,4368.0,0.3216]
[1757348756882,0.4063,4368.1,4368.0,0.5171]
[1757348757089,0.7235,4368.1,4368.0,0.5171]
[1757348757285,0.96722897,4368.1,4368.0,0.7307]
[1757348757479,0.96722897,4368.1,4367.5,0.1222]
[1757348757680,0.7235,4367.6,4367.5,0.5171]
[1757348757884,1.2841945,4367.6,4367.5,0.5171]
[1757348758492,0.9669945,4367.6,4367.1,0.3216]
[1757348758688,0.5606945,4367.5,4367.4,0.7307]
[1757348758893,0.3172,4368.0,4367.5,0.3216]
[1757348759092,0.7571459,4367.9,4367.8,0.7307]
[1757348759287,1.2842459,4367.9,4367.8,0.7307]
[1757348759684,1.2842459,4367.9,4367.5,0.1222]
[1757348759998,0.7235,4367.6,4367.5,0.5171]
[1757348760187,1.2842459,4367.6,4367.5,0.5171]
[1757348760691,0.9670459,4367.6,4367.1,0.3216]
[1757348760891,0.9670459,4367.5,4367.4,0.5171]
[1757348761087,1.22843519,4368.5,4367.5,0.4438]
[1757348761292,1.22843519,4368.7,4368.5,0.4438]
[1757348761489,0.56096831,4368.6,4368.0,0.1222]
[1757348761794,0.17,4368.9,4367.5,0.4438]
[1757348761795,0.7235,4368.1,4367.5,0.4438]
[1757348762093,0.96726831,4368.0,4367.9,0.1955]
[1757348762395,0.96726831,4368.0,4367.9,0.5171]
[1757348763093,0.4063,4367.6,4367.5,0.5171]
[1757348763488,0.96726831,4367.6,4367.5,0.7307]
[1757348763889,0.56096831,4367.6,4367.5,0.8529]
[1757348765291,1.22843519,4368.7,4368.6,0.4091]
[1757348765490,1.98549479,4368.7,4368.6,0.7307]
[1757348765797,2.51259479,4368.7,4368.6,0.1955]
[1757348766189,1.2841596,4368.7,4368.6,0.5171]
[1757348766893,1.2841596,4368.7,4368.1,0.3216]
[1757348767103,0.1964,4368.2,4368.1,0.7307]
[1757348767295,0.75691614,4368.5,4368.1,0.5352]
[1757348767501,0.1964,4368.3,4368.2,0.7307]
[1757348767695,0.75691614,4368.3,4368.2,0.7307]
[1757348768694,0.56051614,4368.3,4368.2,0.7307]
[1757348769494,0.4872,4368.9,4368.2,0.4091]
[1757348769694,0.56031239,4368.8,4368.3,0.3216]
[1757348769895,0.75671239,4368.7,4368.6,0.1955]
[1757348770100,0.75671239,4368.7,4368.6,0.5171]
[1757348770399,0.75671239,4368.7,4368.6,0.7307]
[1757348770600,1.28381239,4368.7,4368.6,0.7307]
[1757348770800,1.28381239,4368.7,4368.2,0.00343355]
[1757348771002,0.96661239,4368.6,4368.5,0.1955]
[1757348771201,1.28381239,4368.6,4368.5,0.5171]
[1757348771997,0.4063,4368.3,4368.2,0.73413355]
[1757348772501,0.96652015,4368.3,4368.2,0.73413355]
[1757348772699,1.28372015,4368.3,4368.2,0.73413355]
[1757348772900,0.96652015,4368.3,4368.2,0.73413355]
[1757348773101,1.28372015,4368.3,4368.2,0.52053355]
[1757348773403,1.28384133,4368.3,4368.2,0.52053355]
[1757348773703,1.28384133,4368.3,4368.2,0.73413355]
[1757348773903,1.28384133,4368.3,4368.2,0.00343355]
[1757348774304,1.28384133,4368.3,4368.2,0.73413355]
[1757348774700,1.28384133,4368.3,4368.2,0.52053355]
[1757348775300,1.28384133,4368.3,4368.2,0.73413355]
[1757348776706,0.96664133,4368.3,4368.2,0.72303355]
[1757348777000,0.56034133,4368.3,4368.2,0.72303355]
[1757348777411,0.4731,4368.9,4368.2,0.40723355]
[1757348777600,0.4731,4368.9,4368.3,0.7196]
[1757348777601,0.2138,4368.4,4368.3,0.7196]
[1757348779110,1.28516723,4368.4,4368.3,0.7196]
[1757348782600,1.28516723,4368.4,4368.3,0.2084]
[1757348782805,1.28516723,4368.4,4368.3,0.5242]
[1757348783002,1.28516723,4368.4,4368.3,0.7196]
[1757348783308,0.98206723,4368.4,4368.3,0.7196]
[1757348784211,0.56176723,4368.4,4368.3,0.7196]
[1757348784504,1.28516723,4368.4,4368.3,0.7196]
[1757348785510,0.98206723,4368.4,4368.3,0.7196]
[1757348786602,0.56176723,4368.4,4368.3,0.7196]
[1757348789212,0.56176723,4368.4,4368.3,1.13163]
[1757348789408,0.3838,4368.9,4368.8,0.7196]
[1757348789715,0.94778283,4368.9,4368.8,0.7196]
[1757348790107,0.94778283,4368.9,4368.8,4.7196]
[1757348790108,0.17,4368.9,4368.8,4.7196]
[1757348790501,0.7234,4369.9,4369.8,0.4038]
[1757348790808,1.28718566,4369.9,4369.8,0.7196]
[1757348792103,1.28718566,4369.9,4369.8,0.5242]
[1757348792307,1.28718566,4369.9,4369.1,0.3158]
[1757348792508,0.4203,4369.2,4369.1,0.7196]
[1757348793108,0.3031,4369.9,4369.2,0.3158]
[1757348793310,0.98370804,4369.8,4369.7,0.2084]
[1757348793505,1.28680804,4369.8,4369.7,0.5242]
[1757348793705,1.28680804,4369.8,4369.7,0.7196]
[1757348796416,0.56340804,4369.8,4369.7,0.7196]
[1757348797520,1.75472958,4371.0,4369.8,0.3158]
[1757348797521,0.3031,4370.7,4369.8,0.3158]
[1757348797711,0.56307642,4370.6,4369.8,0.3158]
[1757348797910,0.2138,4370.7,4370.6,0.7196]
[1757348798312,1.28643656,4370.7,4370.6,0.7196]
[1757348798504,1.28643656,4370.7,4370.6,0.5242]
[1757348799104,1.28643656,4370.7,4370.6,0.2084]
[1757348799522,1.28643656,4370.7,4370.1,0.4038]
[1757348799523,0.2138,4370.2,4370.1,0.4038]
[1757348799717,0.1191,4371.0,4370.2,0.3158]
[1757348799913,0.5169,4370.8,4370.7,0.2084]
[1757348800219,1.28589352,4370.8,4370.7,0.5242]
[1757348800720,0.77629352,4370.8,4370.7,0.7196]
[1757348801022,0.56249352,4370.8,4370.7,0.7196]
[1757348801407,0.3031,4371.9,4370.8,0.5242]
[1757348801618,0.3031,4371.9,4370.0,0.53307]
[1757348801619,0.3031,4370.8,4370.0,0.437]
[1757348801918,0.3031,4370.8,4369.6,0.7196]
[1757348801919,0.7234,4369.7,4369.6,0.7196]
[1757348802314,0.7234,4369.7,4368.8,33.213]
[1757348802518,0.7234,4369.7,4369.1,0.3158]
[1757348802718,0.56215422,4369.6,4369.1,0.3158]
[1757348802922,0.7234,4369.6,4369.5,0.2084]
[1757348803117,1.28559513,4369.6,4369.5,0.5242]
[1757348803718,1.28559513,4369.6,4369.5,0.2084]
[1757348804720,0.4203,4369.3,4369.2,0.3158]
[1757348805024,0.4203,4369.3,4369.2,0.7196]
[1757348805217,0.3031,4369.2,4368.9,0.3158]
[1757348805420,0.4203,4369.0,4368.9,0.7196]
[1757348805718,0.3124,4369.9,4369.0,0.1277]
[1757348805923,0.7069,4369.2,4369.1,0.5008]
[1757348806517,0.3945,4369.2,4369.1,0.7038]
[1757348806920,0.7069,4369.2,4369.1,0.7038]
[1757348810926,0.7069,4369.0,4368.9,0.5008]
[1757348811118,0.7069,4369.0,4368.9,0.7038]
[1757348811318,0.3945,4369.0,4368.9,0.7038]
[1757348811725,0.7069,4369.0,4368.9,0.7038]
[1757348812024,0.3945,4369.0,4368.9,0.7038]
[1757348812623,0.7069,4369.0,4368.9,0.7038]
[1757348812819,0.3945,4369.0,4368.9,0.7038]
[1757348813023,0.1968,4369.0,4368.9,0.7038]
[1757348815121,0.1968,4369.0,4368.9,0.9388]
[1757348815324,0.3945,4369.0,4368.9,0.9388]
[1757348816238,0.3945,4369.0,4368.9,0.7038]
[1757348816523,0.7069,4368.2,4368.1,0.7038]
[1757348817025,0.3945,4368.2,4368.1,0.7038]
[1757348817622,1.73763519,4369.4,4368.6,0.302]
[1757348817922,1.27036568,4369.3,4369.2,0.7038]
[1757348818319,5.27036568,4369.3,4368.4,0.302]
[1757348818522,0.7069,4368.5,4368.4,0.7038]
[1757348818731,0.3945,4368.5,4368.4,0.7038]
[1757348819231,0.1968,4368.5,4368.4,0.7038]
[1757348820732,0.3945,4368.5,4368.4,0.7038]
[1757348820926,0.7069,4368.5,4368.4,0.5008]
[1757348821125,0.3945,4368.5,4368.4,0.7038]
[1757348821523,1.34543519,4369.5,4368.5,0.4297]
[1757348821723,1.27036132,4369.4,4369.3,0.7038]